{"text_format":"1","workbook":"xlsx","n_sheets":9,"sheets":["Accueil","E-reglette Katana","E-reglette Chikara duo","E-reglette Longrun","BD","Secret","Volume d'eau K","Volume d'eau CD)","Volume d'eau KD"],"not_rendered":{"charts":0,"images":13,"macros":1,"external_links":0,"defined_names":20,"comments":0,"pivot_tables":0},"unopened":[],"bounds":{"document_bytes":16777216,"sheet_cells":100000,"rows_first":2000,"rows_last":500,"rows_between":2000,"halvings":0,"cell_chars":16384,"cell_head_chars":4096},"cells_cut":0,"cells_raw":0,"read":"whole","date_system":"1900"}

{"sheet":"Accueil","index":0,"n_rows":0,"n_cols":0,"rows_kept":0,"cut":false,"hidden":false,"merged":[]}

{"sheet":"E-reglette Katana","index":1,"n_rows":25,"n_cols":24,"rows_kept":25,"cut":false,"hidden":false,"merged":[[4,18,4,21],[4,1,4,4],[17,16,18,16],[19,16,20,16],[4,23,4,26],[6,1,6,4],[8,1,8,4],[11,1,13,4],[9,1,9,4],[9,16,10,16],[11,16,12,16],[23,0,23,14],[24,0,24,14],[3,1,3,4],[22,0,22,14],[18,1,20,4]]}
[null,null,null,null,null,null,null,null,null,null,null,null,null,null,null,null,null,null,null,{"$f":"IF(OR($G$7=\"\",$G$9=\"\",$G$16=\"\",$G$5=\"\"),\"\",ROUND((((($G$16*10000)*($G$9/100))/$G$7)*($G$5/1000)/($G$16*10000))*$G$16,2))","v":""}]
[null,null,null,null,null,null,null,null,null,"( B ) ",null,"( B ) ",null,"( B ) "]
[null,null,null,null,null,null,null,null,null,null,null,null,null,null,null,null,null,null,null,{"$f":"IF(OR($G$7=\"\",$G$9=\"\",$G$16=\"\",$G$5=\"\"),\"\",ROUND((((($G$16*10000)*($G$9/100))/$G$7)*($G$5)/($G$16*10000))*$G$16,0))","v":""}]
[null,"\"En application localisée sur le rang\"",null,null,null,null,null,null,null,null,null,null,null,null,null,null,"Prix au KG",null,"D",null,null,null,null,"LA"]
[null,"La dose AMM de Katana est de 200 g / Ha ",null,null,null,null,null,"g / Ha",null,null,null,null,null,null,null,null,800,null,"Distance de plantation entre les rangs en métres",null,null,null,null,"Largeur traitée sous le rang (en cm )"]
[null,null,null,null,null,null,null,null,null,null,null,null,null,null,null,null,null,null,0.9,null,null,null,null,10]
[null,"Ecartement entre les rangs en mètres ( A )",null,null,null,null,null,null,null,null,null,null,null,null,null,null,null,null,1,null,null,null,null,20]
[null,null,null,null,null,null,null,null,null,null,null,null,null,null,null,null,null,null,1.1000000000000001,null,null,null,null,30]
[null,"Largeur traitée sous le rang en cm  ( B ) ",null,null,null,null,null,null,null,null,null,null,null,null,null,null,null,null,1.2,null,null,null,null,40]
[null,"% désherbé",null,null,null,null,{"$f":"IF(OR(G7=\"\",G9=\"\",G5=\"\"),\"\",G9/(G7*100))","v":""},null,null,null,"( A)",null,"( A)",null,null,null,"Prix Ha sur le rang ",null,1.3,null,null,null,null,50]
[null,null,null,null,null,null,null,null,null,null,null,null,null,null,null,null,null,null,1.6,null,null,null,null,80]
[null,{"$f":"IF(G10=\"\",\"\",IF(G10>83%,\"ERREUR LARGEUR TRAITEE\",\"Quantité de produit  pour un Ha désherbé à  \"&ROUND(G10*100,0)&\"%\"))","v":""},null,null,null,null,{"$f":"IF(OR($G$7=\"\",$G$9=\"\",$G$5=\"\"),\"\",ROUND((((1*10000)*($G$9/100))/$G$7)*($G$5/1000)/(1*10000),2)&\" Kg \")","v":""},null,null,null,null,null,null,null,null,null,{"$f":"IF(Q5=\"\",\"\",IF(G12=\"\",\"\",G12*Q5))","v":""},null,1.7,null,null,null,null,90]
[null,null,null,null,null,null,"ou",null,null,null,null,null,null,null,null,null,null,null,1.8,null,null,null,null,100]
[null,null,null,null,null,null,{"$f":"IF(OR($G$7=\"\",$G$9=\"\",$G$5=\"\"),\"\",ROUND((((1*10000)*($G$9/100))/$G$7)*($G$5)/(1*10000),0)&\" g \")","v":""},null,null,null,null,null,null,null,null,null,null,null,1.9,null,null,null,null,110]
[]
[null,"Surface plantée en vigne à désherber (ha)"]
[null,null,null,null,null,null,null,null,null,null,null,null,null,null,null,null,null,null,2.1,null,null,null,null,130]
[]
[null,{"$f":"IF(OR(G16=\"\",G10=\"\"),\"\",\"Quantité de produit à appliquer sur le rang pour la parcelle\"&\"   \"&G16&\" Ha\")","v":""},null,null,null,null,{"$f":"IF(OR($G$7=\"\",$G$9=\"\",$G$16=\"\",$G$5=\"\"),\"\",ROUND((((($G$16*10000)*($G$9/100))/$G$7)*($G$5/1000)/($G$16*10000))*$G$16,2)&\" kg \")","v":""},null,null,null,null,null,null,null,null,null,null,null,2.2000000000000002,null,null,null,null,140]
[null,null,null,null,null,null,{"$f":"IF(G16=\"\",\"\",\"ou\")","v":""},null,null,null,null,null,null,null,null,null,null,null,2.2999999999999998,null,null,null,null,150]
[null,null,null,null,null,null,{"$f":"IF(OR($G$7=\"\",$G$9=\"\",$G$16=\"\",$G$5=\"\"),\"\",ROUND((((($G$16*10000)*($G$9/100))/$G$7)*($G$5)/($G$16*10000))*$G$16,0)&\" g \")","v":""},null,null,null,null,null,null,null,null,null,null,null,2.4,null,null,null,null,160]
[null,null,null,null,null,null,null,null,null,null,null,null,null,null,null,null,null,null,2.5,null,null,null,null,170]
["Katana (AMM 9700070) 25% flazasulfuron, formulation WG. Marque déposée d’Ishihara Sangyo Kaisha (ISK) Ltd, Japon. Détenteur homologation : ISK Biosciences Europe SA. P273 Eviter le rejet dans l’environnement. P391 Recueillir le produit répandu. P501 Eliminer le contenu/récipient conformément à la réglementation locale/nationale en vigueur. Spe3 Pour protéger les organismes aquatiques, respecter une ZNT de 20m par rapport aux points d'eau comportant un DVP. Pour protéger les plantes non-cibles, respecter une ZNT de 10 m par rapport à la zone non cultivée adjacente. Avant toute utilisation, assurez-vous que celle-ci est indispensable. Privilégiez chaque fois que possible les méthodes alternatives et les produits présentant le risque le plus faible pour la santé humaine et animale et pour l’environnement, conformément aux principes de la protection intégrée, cf http://agriculture.gouv.fr/ecophyto. Pour les usages autorisés, doses, conditions et restrictions d’emploi, cf l’étiquette ou www.phytodata.com",null,null,null,null,null,null,null,null,null,null,null,null,null,null,null,null,null,2.8,null,null,null,null,200]
["Attention.\nH400 Très toxique pour les organismes aquatiques. \nH410 Très toxique pour les organismes aquatiques ; entraîne des effets néfastes à long terme. \nEUH401 Respectez les instructions d'utilisation pour éviter les risques pour la santé humaine et l'environnement "]
["Distribué Belchim Crop Protection France, 3 allée des Chevreuils 69380 Lissieu. T. 04 78 83 40 66. www.belchim.fr \nAgrément NC00838 Distribution de produits phytopharmaceutiques à des utilisateurs professionnels. Jan.22",null,null,null,null,null,null,null,null,null,null,null,null,null,null,null,null,null,2.6,null,null,null,null,180]

{"sheet":"E-reglette Chikara duo","index":2,"n_rows":34,"n_cols":24,"rows_kept":34,"cut":false,"hidden":true,"merged":[[17,16,18,16],[19,16,20,16],[23,0,23,14],[24,0,24,14],[4,23,4,26],[6,1,6,4],[8,1,8,4],[11,1,13,4],[11,6,13,6],[9,1,9,4],[9,16,10,16],[11,16,12,16],[4,18,4,21],[4,1,4,4],[3,1,3,4],[22,0,22,14],[18,1,20,4],[18,6,20,6],[15,1,15,4]]}
[null,null,null,null,null,null,null,null,null,null,null,null,null,null,null,null,null,null,null,{"$f":"(((((G16*10000)*(G$9/100))/G$7)*G5)/(G16*10000))*G16","v":{"$error":"#DIV/0!"}}]
[null,null,null,null,null,null,null,null,null,"( B ) ",null,"( B ) ",null,"( B ) "]
[]
[null,"\"En application localisée sur le rang\"",null,null,null,null,null,null,null,null,null,null,null,null,null,null,"Prix au KG",null,"D",null,null,null,null,"LA"]
[null,"La dose AMM de Chikara Duo est de 3 Kg / Ha ",null,null,null,null,null,"Kg / Ha",null,null,null,null,null,null,null,null,800,null,"Distance de plantation entre les rangs en métres",null,null,null,null,"Largeur traitée sous le rang (en cm )"]
[null,null,null,null,null,null,null,null,null,null,null,null,null,null,null,null,null,null,0.9,null,null,null,null,10]
[null,"Ecartement entre les rangs en mètres ( A )",null,null,null,null,null,null,null,null,null,null,null,null,null,null,null,null,1,null,null,null,null,20]
[null,null,null,null,null,null,null,null,null,null,null,null,null,null,null,null,null,null,1.1000000000000001,null,null,null,null,30]
[null,"Largeur traitée sur le rang en cm  ( B ) ",null,null,null,null,null,null,null,null,null,null,null,null,null,null,null,null,1.2,null,null,null,null,40]
[null,"% désherbé",null,null,null,null,{"$f":"IF(OR(G7=\"\",G9=\"\",G5=\"\"),\"\",G9/(G7*100))","v":""},null,null,null,"( A)",null,"( A)",null,null,null,"Prix Ha sur le rang ",null,1.3,null,null,null,null,50]
[null,null,null,null,null,null,null,null,null,null,null,null,null,null,null,null,null,null,1.6,null,null,null,null,80]
[null,{"$f":"IF(G10=\"\",\"\",IF(G10>83%,\"ERREUR LARGEUR TRAITEE\",\"Quantité de produit en Kg  pour un Ha désherbé à  \"&ROUND(G10*100,0)&\"%\"))","v":""},null,null,null,null,{"$f":"IF(OR(G7=\"\",G9=\"\",G5=\"\"),\"\",ROUND((((1*10000)*(G$9/100))/G$7)*G5/(1*10000),2)&\" Kg \")","v":""},null,null,null,null,null,null,null,null,null,{"$f":"IF(Q5=\"\",\"\",IF(G12=\"\",\"\",G12*Q5))","v":""},null,1.7,null,null,null,null,90]
[null,null,null,null,null,null,null,null,null,null,null,null,null,null,null,null,null,null,1.8,null,null,null,null,100]
[null,null,null,null,null,null,null,null,null,null,null,null,null,null,null,null,null,null,1.9,null,null,null,null,110]
[null,null,null,null,"Equivalent Glyphosate Acide",null,{"$f":"IF(OR(G7=\"\",G9=\"\",G5=\"\"),\"\",ROUND(((((1*10000)*(G$9/100))/G$7)*G5)/(1*10000)*288,0)&\" g \")","v":""},null,null,null,null,null,null,null,null,null,null,null,2,null,null,null,null,120]
[null,"Surface plantée en vigne à désherber (ha)",null,null,null,null,null,null,null,null,null,null,null,null,null,null,null,null,1.4,null,null,null,null,60]
[null,null,null,null,null,null,null,null,null,null,null,null,null,null,null,null,null,null,2.1,null,null,null,null,130]
[]
[null,{"$f":"IF(OR(G16=\"\",G10=\"\"),\"\",\"Quantité de produit en Kg à appliquer sur le rang pour la parcelle\"&\"   \"&G16&\" Ha\")","v":""},null,null,null,null,{"$f":"IF(OR(G7=\"\",G9=\"\",G16=\"\",G5=\"\"),\"\",ROUND(((((G16*10000)*(G$9/100))/G$7)*G5)/(G16*10000),2)*G16)&\" Kg\"","v":" Kg"},null,null,null,null,null,null,null,null,null,null,null,2.2000000000000002,null,null,null,null,140]
[null,null,null,null,null,null,null,null,null,null,null,null,null,null,null,null,null,null,2.2999999999999998,null,null,null,null,150]
[null,null,null,null,null,null,null,null,null,null,null,null,null,null,null,null,null,null,2.4,null,null,null,null,160]
[null,null,null,null,null,null,null,null,null,null,null,null,null,null,null,null,null,null,2.5,null,null,null,null,170]
["Chikara Duo (AMM 2140086) 6,7 g/kg flazasulfuron + 288 g/kg glyphosate, formulation WG. Marque déposée de Ishihara Sangyo Kaisha (Ltd.; Japan). Détenteur homologation : ISK Biosciences Europe S.A. P273 Éviter le rejet dans l’environnement. P280 Porter des gants de protection / des vêtements de protection / un équipement de protection des yeux/du visage. P305+P351+P338 en cas de contact avec les yeux : rincer avec précaution à l’eau pendant plusieurs minutes. Enlever les lentilles de contact si la victime en porte et si elles peuvent être facilement enlevées. Continuer à rincer. P337+P313 Si l’irritation oculaire persiste : consulter un médecin. P391 Recueillir le produit répandu. P501 Éliminer le contenu/récipient selon la règlementation en vigueur. Spe3 Pour protéger les organismes aquatiques, respecter une ZNT comportant un DVP de 20m par rapport aux points d'eau ; Pour protéger les plantes non-cibles, respecter une ZNT de 5m par rapport à la zone non cultivée adjacente. Avant toute utilisation, assurez-vous que celle-ci est indispensable. Privilégiez chaque fois que possible les méthodes alternatives et les produits présentant le risque le plus faible pour la santé humaine et animale et pour l’environnement, conformément aux principes de la protection intégrée, cf http://agriculture.gouv.fr/ecophyto. Pour les usages autorisés, doses, conditions et restrictions d’emploi, cf l’étiquette ou www.phytodata.com.",null,null,null,null,null,null,null,null,null,null,null,null,null,null,null,null,null,2.8,null,null,null,null,200]
["Attention. \nLésions oculaires graves/irritation oculaire catégorie 2 : H319 Provoque une sévère irritation des yeux. \nDangers pour le milieu aquatique toxicité aiguë catégorie 1 : H400 Très toxique pour les organismes aquatiques. \nDangers pour le milieu aquatique toxicité chronique catégorie 1 : H410 Très toxique pour les organismes aquatiques ; entraîne des effets néfastes à long terme. \nEUH401 Respectez les instructions d'utilisation afin d'éviter les risques pour la santé humaine et l'environnement. "]
["Distribué par Belchim Crop Protection, 3 allée des Chevreuils 69380 Lissieu. T. 04 78 83 40 66. www.belchim.fr \nAgrément NC00838 Distribution de produits phytopharmaceutiques à des utilisateurs professionnels. Jan.20 "]
[]
[null,null,null,null,null,null,null,null,null,null,null,null,null,null,null,null,null,null,2.9,null,null,null,null,210]
[null,null,null,null,null,null,null,null,null,null,null,null,null,null,null,null,null,null,3,null,null,null,null,220]
[null,null,null,null,null,null,null,null,null,null,null,null,null,null,null,null,null,null,null,null,null,null,null,230]
[null,null,null,null,null,null,null,null,null,null,null,null,null,null,null,null,null,null,null,null,null,null,null,240]
[null,null,null,null,null,null,null,null,null,null,null,null,null,null,null,null,null,null,null,null,null,null,null,250]
[null,null,null,null,null,null,null,null,null,null,null,null,null,null,null,null,null,null,null,null,null,null,null,260]
[null,null,null,null,null,null,null,null,null,null,null,null,null,null,null,null,null,null,null,null,null,null,null,270]
[null,null,null,null,null,null,null,null,null,null,null,null,null,null,null,null,null,null,null,null,null,null,null,280]

{"sheet":"E-reglette Longrun","index":3,"n_rows":33,"n_cols":24,"rows_kept":33,"cut":false,"hidden":true,"merged":[[15,1,15,4],[3,1,3,4],[4,1,4,4],[4,18,4,21],[4,23,4,26],[6,1,6,4],[8,1,8,4],[9,1,9,4],[9,16,10,16],[11,1,13,4],[11,6,13,6],[11,16,12,16],[24,0,24,14],[22,0,22,14],[23,0,23,14],[17,16,18,16],[18,1,20,4],[18,6,20,6],[19,16,20,16]]}
[null,null,null,null,null,null,null,null,null,null,null,null,null,null,null,null,null,null,null,{"$f":"(((((G16*10000)*(G$9/100))/G$7)*G5)/(G16*10000))*G16","v":{"$error":"#DIV/0!"}}]
[null,null,null,null,null,null,null,null,null,"( B ) ",null,"( B ) ",null,"( B ) "]
[]
[null,"\"En application localisée sur le rang\"",null,null,null,null,null,null,null,null,null,null,null,null,null,null,"Prix au KG",null,"D",null,null,null,null,"LA"]
[null,"La dose AMM de Longrun est de 3 Kg / Ha ",null,null,null,null,null,"Kg / Ha",null,null,null,null,null,null,null,null,800,null,"Distance de plantation entre les rangs en métres",null,null,null,null,"Largeur traitée sous le rang (en cm )"]
[null,null,null,null,null,null,null,null,null,null,null,null,null,null,null,null,null,null,0.9,null,null,null,null,10]
[null,"Ecartement entre les rangs en mètres ( A )",null,null,null,null,null,null,null,null,null,null,null,null,null,null,null,null,1,null,null,null,null,20]
[null,null,null,null,null,null,null,null,null,null,null,null,null,null,null,null,null,null,1.1000000000000001,null,null,null,null,30]
[null,"Largeur traitée sur le rang en cm  ( B ) ",null,null,null,null,null,null,null,null,null,null,null,null,null,null,null,null,1.2,null,null,null,null,40]
[null,"% désherbé",null,null,null,null,{"$f":"IF(OR(G7=\"\",G9=\"\",G5=\"\"),\"\",G9/(G7*100))","v":""},null,null,null,"( A)",null,"( A)",null,null,null,"Prix Ha sur le rang ",null,1.3,null,null,null,null,50]
[null,null,null,null,null,null,null,null,null,null,null,null,null,null,null,null,null,null,1.6,null,null,null,null,80]
[null,{"$f":"IF(G10=\"\",\"\",IF(G10>83%,\"ERREUR LARGEUR TRAITEE\",\"Quantité de produit en Kg  pour un Ha désherbé à  \"&ROUND(G10*100,0)&\"%\"))","v":""},null,null,null,null,{"$f":"IF(OR(G7=\"\",G9=\"\",G5=\"\"),\"\",ROUND((((1*10000)*(G$9/100))/G$7)*G5/(1*10000),2)&\" Kg \")","v":""},null,null,null,null,null,null,null,null,null,{"$f":"IF(Q5=\"\",\"\",IF(G12=\"\",\"\",G12*Q5))","v":""},null,1.7,null,null,null,null,90]
[null,null,null,null,null,null,null,null,null,null,null,null,null,null,null,null,null,null,1.8,null,null,null,null,100]
[null,null,null,null,null,null,null,null,null,null,null,null,null,null,null,null,null,null,1.9,null,null,null,null,110]
[null,null,null,null,"Equivalent Glyphosate Acide",null,{"$f":"IF(OR(G7=\"\",G9=\"\",G5=\"\"),\"\",ROUND(((((1*10000)*(G$9/100))/G$7)*G5)/(1*10000)*288,0)&\" g \")","v":""},null,null,null,null,null,null,null,null,null,null,null,2,null,null,null,null,120]
[null,"Surface plantée en vigne à désherber (ha)",null,null,null,null,null,null,null,null,null,null,null,null,null,null,null,null,1.4,null,null,null,null,60]
[null,null,null,null,null,null,null,null,null,null,null,null,null,null,null,null,null,null,2.1,null,null,null,null,130]
[]
[null,{"$f":"IF(OR(G16=\"\",G10=\"\"),\"\",\"Quantité de produit en Kg à appliquer sur le rang pour la parcelle\"&\"   \"&G16&\" Ha\")","v":""},null,null,null,null,{"$f":"IF(OR(G7=\"\",G9=\"\",G16=\"\",G5=\"\"),\"\",ROUND(((((G16*10000)*(G$9/100))/G$7)*G5)/(G16*10000),2)*G16)&\" Kg\"","v":" Kg"},null,null,null,null,null,null,null,null,null,null,null,2.2000000000000002,null,null,null,null,140]
[null,null,null,null,null,null,null,null,null,null,null,null,null,null,null,null,null,null,2.2999999999999998,null,null,null,null,150]
[null,null,null,null,null,null,null,null,null,null,null,null,null,null,null,null,null,null,2.4,null,null,null,null,160]
[null,null,null,null,null,null,null,null,null,null,null,null,null,null,null,null,null,null,2.5,null,null,null,null,170]
["Longrun (AMM 2140086) 6,7 g/kg flazasulfuron + 288 g/kg glyphosate, formulation WG. Marque déposée de Ishihara Sangyo Kaisha (Ltd.; Japan). Détenteur homologation : ISK Biosciences Europe S.A. P273 Éviter le rejet dans l’environnement. P280 Porter des gants de protection / des vêtements de protection / un équipement de protection des yeux/du visage. P305+P351+P338 en cas de contact avec les yeux : rincer avec précaution à l’eau pendant plusieurs minutes. Enlever les lentilles de contact si la victime en porte et si elles peuvent être facilement enlevées. Continuer à rincer. P337+P313 Si l’irritation oculaire persiste : consulter un médecin. P391 Recueillir le produit répandu. P501 Éliminer le contenu/récipient selon la règlementation en vigueur. Spe3 Pour protéger les organismes aquatiques, respecter une ZNT comportant un DVP de 20m par rapport aux points d'eau ; Pour protéger les plantes non-cibles, respecter une ZNT de 5m par rapport à la zone non cultivée adjacente. Avant toute utilisation, assurez-vous que celle-ci est indispensable. Privilégiez chaque fois que possible les méthodes alternatives et les produits présentant le risque le plus faible pour la santé humaine et animale et pour l’environnement, conformément aux principes de la protection intégrée, cf http://agriculture.gouv.fr/ecophyto. Pour les usages autorisés, doses, conditions et restrictions d’emploi, cf l’étiquette ou www.phytodata.com."]
["Attention. \nLésions oculaires graves/irritation oculaire catégorie 2 : H319 Provoque une sévère irritation des yeux. \nDangers pour le milieu aquatique toxicité aiguë catégorie 1 : H400 Très toxique pour les organismes aquatiques. \nDangers pour le milieu aquatique toxicité chronique catégorie 1 : H410 Très toxique pour les organismes aquatiques ; entraîne des effets néfastes à long terme. \nEUH401 Respectez les instructions d'utilisation afin d'éviter les risques pour la santé humaine et l'environnement. ",null,null,null,null,null,null,null,null,null,null,null,null,null,null,null,null,null,2.6,null,null,null,null,180]
["Distribué par Belchim Crop Protection, 3 allée des Chevreuils 69380 Lissieu. T. 04 78 83 40 66. www.belchim.fr \nAgrément NC00838 Distribution de produits phytopharmaceutiques à des utilisateurs professionnels. Jan.20 ",null,null,null,null,null,null,null,null,null,null,null,null,null,null,null,null,null,2.8,null,null,null,null,200]
[null,null,null,null,null,null,null,null,null,null,null,null,null,null,null,null,null,null,2.9,null,null,null,null,210]
[null,null,null,null,null,null,null,null,null,null,null,null,null,null,null,null,null,null,3,null,null,null,null,220]
[null,null,null,null,null,null,null,null,null,null,null,null,null,null,null,null,null,null,null,null,null,null,null,230]
[null,null,null,null,null,null,null,null,null,null,null,null,null,null,null,null,null,null,null,null,null,null,null,240]
[null,null,null,null,null,null,null,null,null,null,null,null,null,null,null,null,null,null,null,null,null,null,null,250]
[null,null,null,null,null,null,null,null,null,null,null,null,null,null,null,null,null,null,null,null,null,null,null,260]
[null,null,null,null,null,null,null,null,null,null,null,null,null,null,null,null,null,null,null,null,null,null,null,270]
[null,null,null,null,null,null,null,null,null,null,null,null,null,null,null,null,null,null,null,null,null,null,null,280]

{"sheet":"BD","index":4,"n_rows":331,"n_cols":11,"rows_kept":331,"cut":false,"hidden":true,"merged":[]}
["Genre","Produit",null,null,null,null,null,"Noms de champ"]
[0.9,10,null,null,null,null,null,"Genre","=BD!$A$2:$A$1000"]
[0.9,20,null,null,null,null,null,"ListeGenre","=DECALER(BD!$F$2;;;NB.SI(BD!$F$2:$F$20;\"<>0\"))"]
[0.9,30,null,null,null,null,null,"Prix","=BD!$C$2:$C$1000"]
[0.9,40,null,null,null,null,null,"produit","=BD!$B$2:$B$1000"]
[0.9,50,null,null,null,0.9,{"$f":"F6*0.75","v":0.67500000000000004}]
[0.9,60,null,null,null,1,{"$f":"F7*0.75","v":0.75}]
[0.9,70,null,null,null,1.1000000000000001,0.82500000000000007]
[1,10,null,null,null,1.2,0.89999999999999991,null,null,"X","Y"]
[1,20,null,null,null,1.3,0.97500000000000009,null,null,200,3]
[1,30,null,null,null,1.4,1.0499999999999998,null,null,190,2.9]
[1,40,null,null,null,1.5,1.125,null,null,180,2.8]
[1,50,null,null,null,1.6,1.2000000000000002,null,null,170,2.7]
[1,60,null,null,null,1.7,1.2749999999999999,null,null,160,2.6]
[1,70,null,null,null,1.8,1.35,null,null,150,2.5]
[1,80,null,null,null,1.9,1.4249999999999998,null,null,140,2.4]
[1.1000000000000001,10,null,null,null,2,1.5,null,null,130,2.2999999999999998]
[1.1000000000000001,20,null,null,null,2.1,1.5750000000000002,null,null,120,2.2000000000000002]
[1.1000000000000001,30,null,null,null,2.2000000000000002,1.6500000000000001,null,null,110,2.1]
[1.1000000000000001,40,null,null,null,2.2999999999999998,1.7249999999999999,null,null,100,2]
[1.1000000000000001,50,null,null,null,2.4,1.7999999999999998,null,null,90,1.9]
[1.1000000000000001,60,null,null,null,2.5,1.875,null,null,80,1.8]
[1.1000000000000001,70,null,null,null,2.6,1.9500000000000002,null,null,70,1.7]
[1.1000000000000001,80,null,null,null,2.7,2.0250000000000004,null,null,60,1.6]
[1.1000000000000001,90,null,null,null,2.8,2.0999999999999996,null,null,50,1.5]
[1.2,10,null,null,null,2.9,2.1749999999999998]
[1.2,20,null,null,null,3,2.25]
[1.2,30]
[1.2,40]
[1.2,50]
[1.2,60]
[1.2,70]
[1.2,80]
[1.2,90]
[1.3,10]
[1.3,20]
[1.3,30]
[1.3,40]
[1.3,50]
[1.3,60]
[1.3,70]
[1.3,80]
[1.3,90]
[1.3,100]
[1.4,10]
[1.4,20]
[1.4,30]
[1.4,40]
[1.4,50]
[1.4,60]
[1.4,70]
[1.4,80]
[1.4,90]
[1.4,100]
[1.4,110]
[1.5,10]
[1.5,20]
[1.5,30]
[1.5,40]
[1.5,50]
[1.5,60]
[1.5,70]
[1.5,80]
[1.5,90]
[1.5,100]
[1.5,110]
[1.5,120]
[1.6,10]
[1.6,20]
[1.6,30]
[1.6,40]
[1.6,50]
[1.6,60]
[1.6,70]
[1.6,80]
[1.6,90]
[1.6,100]
[1.6,110]
[1.6,120]
[1.7,10]
[1.7,20]
[1.7,30]
[1.7,40]
[1.7,50]
[1.7,60]
[1.7,70]
[1.7,80]
[1.7,90]
[1.7,100]
[1.7,110]
[1.7,120]
[1.7,130]
[1.8,10]
[1.8,20]
[1.8,30]
[1.8,40]
[1.8,50]
[1.8,60]
[1.8,70]
[1.8,80]
[1.8,90]
[1.8,100]
[1.8,110]
[1.8,120]
[1.8,130]
[1.8,140]
[1.9,10]
[1.9,20]
[1.9,30]
[1.9,40]
[1.9,50]
[1.9,60]
[1.9,70]
[1.9,80]
[1.9,90]
[1.9,100]
[1.9,110]
[1.9,120]
[1.9,130]
[1.9,140]
[1.9,150]
[2,10]
[2,20]
[2,30]
[2,40]
[2,50]
[2,60]
[2,70]
[2,80]
[2,90]
[2,100]
[2,110]
[2,120]
[2,130]
[2,140]
[2,150]
[2.1,10]
[2.1,20]
[2.1,30]
[2.1,40]
[2.1,50]
[2.1,60]
[2.1,70]
[2.1,80]
[2.1,90]
[2.1,100]
[2.1,110]
[2.1,120]
[2.1,130]
[2.1,140]
[2.1,150]
[2.1,160]
[2.2000000000000002,10]
[2.2000000000000002,20]
[2.2000000000000002,30]
[2.2000000000000002,40]
[2.2000000000000002,50]
[2.2000000000000002,60]
[2.2000000000000002,70]
[2.2000000000000002,80]
[2.2000000000000002,90]
[2.2000000000000002,100]
[2.2000000000000002,110]
[2.2000000000000002,120]
[2.2000000000000002,130]
[2.2000000000000002,140]
[2.2000000000000002,150]
[2.2000000000000002,160]
[2.2000000000000002,170]
[2.2999999999999998,10]
[2.2999999999999998,20]
[2.2999999999999998,30]
[2.2999999999999998,40]
[2.2999999999999998,50]
[2.2999999999999998,60]
[2.2999999999999998,70]
[2.2999999999999998,80]
[2.2999999999999998,90]
[2.2999999999999998,100]
[2.2999999999999998,110]
[2.2999999999999998,120]
[2.2999999999999998,130]
[2.2999999999999998,140]
[2.2999999999999998,150]
[2.2999999999999998,160]
[2.2999999999999998,170]
[2.2999999999999998,180]
[2.4,10]
[2.4,20]
[2.4,30]
[2.4,40]
[2.4,50]
[2.4,60]
[2.4,70]
[2.4,80]
[2.4,90]
[2.4,100]
[2.4,110]
[2.4,120]
[2.4,130]
[2.4,140]
[2.4,150]
[2.4,160]
[2.4,170]
[2.4,180]
[2.5,10]
[2.5,20]
[2.5,30]
[2.5,40]
[2.5,50]
[2.5,60]
[2.5,70]
[2.5,80]
[2.5,90]
[2.5,100]
[2.5,110]
[2.5,120]
[2.5,130]
[2.5,140]
[2.5,150]
[2.5,160]
[2.5,170]
[2.5,180]
[2.5,190]
[2.6,10]
[2.6,20]
[2.6,30]
[2.6,40]
[2.6,50]
[2.6,60]
[2.6,70]
[2.6,80]
[2.6,90]
[2.6,100]
[2.6,110]
[2.6,120]
[2.6,130]
[2.6,140]
[2.6,150]
[2.6,160]
[2.6,170]
[2.6,180]
[2.6,190]
[2.6,200]
[2.7,10]
[2.7,20]
[2.7,30]
[2.7,40]
[2.7,50]
[2.7,60]
[2.7,70]
[2.7,80]
[2.7,90]
[2.7,100]
[2.7,110]
[2.7,120]
[2.7,130]
[2.7,140]
[2.7,150]
[2.7,160]
[2.7,170]
[2.7,180]
[2.7,190]
[2.7,200]
[2.7,210]
[2.8,10]
[2.8,20]
[2.8,30]
[2.8,40]
[2.8,50]
[2.8,60]
[2.8,70]
[2.8,80]
[2.8,90]
[2.8,100]
[2.8,110]
[2.8,120]
[2.8,130]
[2.8,140]
[2.8,150]
[2.8,160]
[2.8,170]
[2.8,180]
[2.8,190]
[2.8,200]
[2.8,210]
[2.9,10]
[2.9,20]
[2.9,30]
[2.9,40]
[2.9,50]
[2.9,60]
[2.9,70]
[2.9,80]
[2.9,90]
[2.9,100]
[2.9,110]
[2.9,120]
[2.9,130]
[2.9,140]
[2.9,150]
[2.9,160]
[2.9,170]
[2.9,180]
[2.9,190]
[2.9,200]
[2.9,210]
[2.9,220]
[3,10]
[3,20]
[3,30]
[3,40]
[3,50]
[3,60]
[3,70]
[3,80]
[3,90]
[3,100]
[3,110]
[3,120]
[3,130]
[3,140]
[3,150]
[3,160]
[3,170]
[3,180]
[3,190]
[3,200]
[3,210]
[3,220]
[3,230]

{"sheet":"Secret","index":5,"n_rows":1,"n_cols":1,"rows_kept":1,"cut":false,"hidden":true,"merged":[]}
["2022-12-31"]

{"sheet":"Volume d'eau K","index":6,"n_rows":33,"n_cols":12,"rows_kept":33,"cut":false,"hidden":true,"merged":[[28,0,28,10],[26,0,26,2],[1,0,1,3],[17,1,18,1],[17,2,18,2],[23,0,24,0],[20,0,21,0],[20,1,21,2],[17,0,18,0],[23,1,24,2],[1,8,1,10]]}
[]
["Calculateur conçu pour une configuration \"2 buses par route\" ",null,null,null,"type de buses ","Pression","Débit",null,"Volume en Localisé sur le rang"]
[null,null,null,null,"Orange ISO 01",2,0.32,null,{"$f":"IF($B$8=\"\",\"\",ROUND((G3*2*600)/($B$4*$B$6),0))","v":""},{"$f":"IF(AND(I3>$B$14,I3<$C$14),1,0)","v":0},{"$f":"IF($B$8=\"\",\"\",IF(J3=0,\"déconseillé\",\"OK\"))","v":""},{"$f":"IF(K3=\"OK\",1,0)","v":0}]
["Vitesse en km/h",5,null,null,null,3,0.39,null,{"$f":"IF($B$8=\"\",\"\",ROUND((G4*2*600)/($B$4*$B$6),0))","v":""},{"$f":"IF(AND(I4>$B$14,I4<$C$14),1,0)","v":0},{"$f":"IF($B$8=\"\",\"\",IF(J4=0,\"déconseillé\",\"OK\"))","v":""},{"$f":"IF(K4=\"OK\",1,0)","v":0}]
[null,null,null,null,null,4,0.45,null,"",0,"",0]
["Ecartement en m",{"$f":"IF('E-reglette Katana'!$G$7=0,\"\",'E-reglette Katana'!$G$7)","v":""},null,null,null,5,0.51,null,"",0,"",0]
[null,null,null,null,null,6,0.56000000000000005,null,"",0,"",0]
["Surface désherbé en %",{"$f":"'E-reglette Katana'!$G$10","v":""},null,null,"Verte ISO 015",2,0.48,null,"",0,"",0]
[null,null,null,null,null,3,0.59,null,"",0,"",0]
["Surface de la parcelle plantée en vigne",{"$f":"'E-reglette Katana'!G16","v":0},null,null,null,4,0.68,null,"",0,"",0]
[null,null,null,null,null,5,0.76,null,"",0,"",0]
[null,"Mini","Maxi",null,null,6,0.84,null,"",0,"",0]
["Vol/ha conseillé en plein en L",100,400,null,"Jaune ISO 02",2,0.63,null,"",0,"",0]
["Sous le rang en L",{"$f":"IF(B8=\"\",\"\",ROUND(B13*B8,0))","v":""},{"$f":"IF(B8=\"\",\"\",ROUND(C13*B8,0))","v":""},null,null,3,0.78,null,"",0,"",0]
[null,null,null,null,null,4,0.9,null,"",0,"",0]
["Volume de fond de cuve + Sécurité en L",null,"L",null,null,5,1.01,null,"",0,"",0]
[null,null,null,null,null,6,1.1100000000000001,null,"",0,"",0]
["Volume d'eau choisit ( case verte )\nEn localisé sur le rang",null,"L",null,"Lilas ISO 025",2,0.85,null,"",0,"",0]
[null,null,null,null,null,3,1,null,"",0,"",0]
[null,null,null,null,null,4,1.1499999999999999,null,"",0,"",0]
["Volume d'eau à embarquer, incluant le volume de sécurité ",{"$f":"IF(OR(B8=\"\",B18=\"\"),\"\",ROUND(B18*(B10)+B16,0)&\" L \")","v":""},null,null,null,5,1.29,null,"",0,"",0]
[null,null,null,null,null,6,1.41,null,"",0,"",0]
[null,null,null,null,"Bleu ISO 03",2,0.95,null,"",0,"",0]
[{"$f":"IF(B13=\"\",\"\",\"Quantité de produit à appliquer sur le rang pour la parcelle\"&\"   \"&B10&\" Ha\")","v":"Quantité de produit à appliquer sur le rang pour la parcelle   0 Ha"},{"$f":"'E-reglette Katana'!$G$19&\" ou \"&'E-reglette Katana'!$G$21&\"*\"","v":" ou *"},null,null,null,3,1.17,null,"",0,"",0]
[null,null,null,null,null,4,1.35,null,"",0,"",0]
[null,null,null,null,null,5,1.52,null,"",0,"",0]
[{"$f":"\"*  \"&\"Prévoir \"&ROUND(B32,3)&\" Kg \"&\" ou \"&ROUND(C32,0)&\" g \"&\"de katana en plus pour le volume de sécurité\"","v":{"$error":"#VALUE!"}},null,null,null,null,6,1.64,null,"",0,"",0]
[]
[{"$f":"IF(ISERROR(VLOOKUP(B18,I:L,4,FALSE)),\"Volume d'eau : Déconseillé\",\"Volume d'eau : OK\")","v":"Volume d'eau : Déconseillé"}]
[null,"Kilo","Gramme"]
[null,{"$f":"'E-reglette Katana'!T1","v":""},{"$f":"'E-reglette Katana'!T3","v":""}]
[null,{"$f":"(B31/B10)*B33","v":{"$error":"#VALUE!"}},{"$f":"B32*1000","v":{"$error":"#VALUE!"}}]
["Produit en plus pour volume de sécurité ",{"$f":"1-(B18/(B18+B16))","v":{"$error":"#DIV/0!"}}]

{"sheet":"Volume d'eau CD)","index":7,"n_rows":33,"n_cols":12,"rows_kept":33,"cut":false,"hidden":true,"merged":[[23,0,24,0],[23,1,24,2],[26,0,26,2],[28,0,28,10],[1,0,1,3],[17,0,18,0],[17,1,18,1],[17,2,18,2],[20,0,21,0],[20,1,21,2],[1,8,1,10]]}
[]
["Calculateur conçu pour une configuration \"2 buses par route\" ",null,null,null,"type de buses ","Pression","Débit",null,"Volume en Localisé sur le rang"]
[null,null,null,null,"Orange ISO 01",2,0.32,null,{"$f":"IF($B$8=\"\",\"\",ROUND((G3*2*600)/($B$4*$B$6),0))","v":""},{"$f":"IF(AND(I3>$B$14,I3<$C$14),1,0)","v":0},{"$f":"IF($B$8=\"\",\"\",IF(J3=0,\"déconseillé\",\"OK\"))","v":""},{"$f":"IF(K3=\"OK\",1,0)","v":0}]
["Vitesse en km/h",5,null,null,null,3,0.39,null,{"$f":"IF($B$8=\"\",\"\",ROUND((G4*2*600)/($B$4*$B$6),0))","v":""},{"$f":"IF(AND(I4>$B$14,I4<$C$14),1,0)","v":0},{"$f":"IF($B$8=\"\",\"\",IF(J4=0,\"déconseillé\",\"OK\"))","v":""},{"$f":"IF(K4=\"OK\",1,0)","v":0}]
[null,null,null,null,null,4,0.45,null,"",0,"",0]
["Ecartement en m",{"$f":"'E-reglette Chikara duo'!G7","v":0},null,null,null,5,0.51,null,"",0,"",0]
[null,null,null,null,null,6,0.56000000000000005,null,"",0,"",0]
["Surface désherbé en %",{"$f":"'E-reglette Chikara duo'!G10","v":""},null,null,"Verte ISO 015",2,0.48,null,"",0,"",0]
[null,null,null,null,null,3,0.59,null,"",0,"",0]
["Surface de la parcelle plantée en vigne",{"$f":"'E-reglette Chikara duo'!G16","v":0},null,null,null,4,0.68,null,"",0,"",0]
[null,null,null,null,null,5,0.76,null,"",0,"",0]
[null,"Mini","Maxi",null,null,6,0.84,null,"",0,"",0]
["Vol/ha conseillé en plein en L",100,400,null,"Jaune ISO 02",2,0.63,null,"",0,"",0]
["Sous le rang en L",{"$f":"IF(B8=\"\",\"\",ROUND(B13*B8,0))","v":""},{"$f":"IF(B8=\"\",\"\",ROUND(C13*B8,0))","v":""},null,null,3,0.78,null,"",0,"",0]
[null,null,null,null,null,4,0.9,null,"",0,"",0]
["Volume de fond de cuve + Sécurité en L",null,"L",null,null,5,1.01,null,"",0,"",0]
[null,null,null,null,null,6,1.1100000000000001,null,"",0,"",0]
["Volume d'eau choisit ( case verte )\nEn localisé sur le rang",null,"L",null,"Lilas ISO 025",2,0.85,null,"",0,"",0]
[null,null,null,null,null,3,1,null,"",0,"",0]
[null,null,null,null,null,4,1.1499999999999999,null,"",0,"",0]
["Volume d'eau à embarquer, incluant le volume de sécurité ",{"$f":"IF(OR(B8=\"\",B18=\"\"),\"\",ROUND(B18*(B10)+B16,2)&\" L \")","v":""},null,null,null,5,1.29,null,"",0,"",0]
[null,null,null,null,null,6,1.41,null,"",0,"",0]
[null,null,null,null,"Bleu ISO 03",2,0.95,null,"",0,"",0]
[{"$f":"IF(B13=\"\",\"\",\"Quantité de produit à appliquer sur le rang pour la parcelle\"&\"   \"&B10&\" Ha\")","v":"Quantité de produit à appliquer sur le rang pour la parcelle   0 Ha"},{"$f":"'E-reglette Chikara duo'!$G$19&\"*\"","v":" Kg*"},null,null,null,3,1.17,null,"",0,"",0]
[null,null,null,null,null,4,1.35,null,"",0,"",0]
[null,null,null,null,null,5,1.52,null,"",0,"",0]
[{"$f":"\"*  \"&\"Prévoir \"&ROUND(B32,2)&\" Kg de Chikara Duo en plus pour le volume de sécurité\"","v":{"$error":"#DIV/0!"}},null,null,null,null,6,1.64,null,"",0,"",0]
[]
[{"$f":"IF(ISERROR(VLOOKUP(B18,I:L,4,FALSE)),\"Volume d'eau : Déconseillé\",\"Volume d'eau : OK\")","v":"Volume d'eau : Déconseillé"}]
[null,"Kilo","Gramme"]
[null,{"$f":"'E-reglette Chikara duo'!T1","v":{"$error":"#DIV/0!"}}]
[null,{"$f":"(B31/B10)*B33","v":{"$error":"#DIV/0!"}}]
["Produit en plus pour volume de sécurité ",{"$f":"1-(B18/(B18+B16))","v":{"$error":"#DIV/0!"}}]

{"sheet":"Volume d'eau KD","index":8,"n_rows":33,"n_cols":12,"rows_kept":33,"cut":false,"hidden":true,"merged":[[23,0,24,0],[23,1,24,2],[26,0,26,2],[28,0,28,10],[1,0,1,3],[17,0,18,0],[17,1,18,1],[17,2,18,2],[20,0,21,0],[20,1,21,2],[1,8,1,10]]}
[]
["Calculateur conçu pour une configuration \"2 buses par route\" ",null,null,null,"type de buses ","Pression","Débit",null,"Volume en Localisé sur le rang"]
[null,null,null,null,"Orange ISO 01",2,0.32,null,{"$f":"IF($B$8=\"\",\"\",ROUND((G3*2*600)/($B$4*$B$6),0))","v":{"$error":"#REF!"}},{"$f":"IF(AND(I3>$B$14,I3<$C$14),1,0)","v":{"$error":"#REF!"}},{"$f":"IF($B$8=\"\",\"\",IF(J3=0,\"déconseillé\",\"OK\"))","v":{"$error":"#REF!"}},{"$f":"IF(K3=\"OK\",1,0)","v":{"$error":"#REF!"}}]
["Vitesse en km/h",5,null,null,null,3,0.39,null,{"$f":"IF($B$8=\"\",\"\",ROUND((G4*2*600)/($B$4*$B$6),0))","v":{"$error":"#REF!"}},{"$f":"IF(AND(I4>$B$14,I4<$C$14),1,0)","v":{"$error":"#REF!"}},{"$f":"IF($B$8=\"\",\"\",IF(J4=0,\"déconseillé\",\"OK\"))","v":{"$error":"#REF!"}},{"$f":"IF(K4=\"OK\",1,0)","v":{"$error":"#REF!"}}]
[null,null,null,null,null,4,0.45,null,{"$error":"#REF!"},{"$error":"#REF!"},{"$error":"#REF!"},{"$error":"#REF!"}]
["Ecartement en m",{"$f":"#REF!","v":{"$error":"#REF!"}},null,null,null,5,0.51,null,{"$error":"#REF!"},{"$error":"#REF!"},{"$error":"#REF!"},{"$error":"#REF!"}]
[null,null,null,null,null,6,0.56000000000000005,null,{"$error":"#REF!"},{"$error":"#REF!"},{"$error":"#REF!"},{"$error":"#REF!"}]
["Surface désherbé en %",{"$f":"#REF!","v":{"$error":"#REF!"}},null,null,"Verte ISO 015",2,0.48,null,{"$error":"#REF!"},{"$error":"#REF!"},{"$error":"#REF!"},{"$error":"#REF!"}]
[null,null,null,null,null,3,0.59,null,{"$error":"#REF!"},{"$error":"#REF!"},{"$error":"#REF!"},{"$error":"#REF!"}]
["Surface de la parcelle plantée en vigne",{"$f":"#REF!","v":{"$error":"#REF!"}},null,null,null,4,0.68,null,{"$error":"#REF!"},{"$error":"#REF!"},{"$error":"#REF!"},{"$error":"#REF!"}]
[null,null,null,null,null,5,0.76,null,{"$error":"#REF!"},{"$error":"#REF!"},{"$error":"#REF!"},{"$error":"#REF!"}]
[null,"Mini","Maxi",null,null,6,0.84,null,{"$error":"#REF!"},{"$error":"#REF!"},{"$error":"#REF!"},{"$error":"#REF!"}]
["Vol/ha conseillé en plein en L",100,300,null,"Jaune ISO 02",2,0.63,null,{"$error":"#REF!"},{"$error":"#REF!"},{"$error":"#REF!"},{"$error":"#REF!"}]
["Sous le rang en L",{"$f":"IF(B8=\"\",\"\",ROUND(B13*B8,0))","v":{"$error":"#REF!"}},{"$f":"IF(B8=\"\",\"\",ROUND(C13*B8,0))","v":{"$error":"#REF!"}},null,null,3,0.78,null,{"$error":"#REF!"},{"$error":"#REF!"},{"$error":"#REF!"},{"$error":"#REF!"}]
[null,null,null,null,null,4,0.9,null,{"$error":"#REF!"},{"$error":"#REF!"},{"$error":"#REF!"},{"$error":"#REF!"}]
["Volume de fond de cuve + Sécurité en L",null,"L",null,null,5,1.01,null,{"$error":"#REF!"},{"$error":"#REF!"},{"$error":"#REF!"},{"$error":"#REF!"}]
[null,null,null,null,null,6,1.1100000000000001,null,{"$error":"#REF!"},{"$error":"#REF!"},{"$error":"#REF!"},{"$error":"#REF!"}]
["Volume d'eau choisit ( case verte )\nEn localisé sur le rang",null,"L",null,"Lilas ISO 025",2,0.85,null,{"$error":"#REF!"},{"$error":"#REF!"},{"$error":"#REF!"},{"$error":"#REF!"}]
[null,null,null,null,null,3,1,null,{"$error":"#REF!"},{"$error":"#REF!"},{"$error":"#REF!"},{"$error":"#REF!"}]
[null,null,null,null,null,4,1.1499999999999999,null,{"$error":"#REF!"},{"$error":"#REF!"},{"$error":"#REF!"},{"$error":"#REF!"}]
["Volume d'eau à embarquer, incluant le volume de sécurité ",{"$f":"IF(OR(B8=\"\",B18=\"\"),\"\",ROUND(B18*(B10)+B16,2)&\" L \")","v":{"$error":"#REF!"}},null,null,null,5,1.29,null,{"$error":"#REF!"},{"$error":"#REF!"},{"$error":"#REF!"},{"$error":"#REF!"}]
[null,null,null,null,null,6,1.41,null,{"$error":"#REF!"},{"$error":"#REF!"},{"$error":"#REF!"},{"$error":"#REF!"}]
[null,null,null,null,"Bleu ISO 03",2,0.95,null,{"$error":"#REF!"},{"$error":"#REF!"},{"$error":"#REF!"},{"$error":"#REF!"}]
[{"$f":"IF(B13=\"\",\"\",\"Quantité de produit à appliquer sur le rang pour la parcelle\"&\"   \"&B10&\" Ha\")","v":{"$error":"#REF!"}},{"$f":"#REF!&\"*\"","v":{"$error":"#REF!"}},null,null,null,3,1.17,null,{"$error":"#REF!"},{"$error":"#REF!"},{"$error":"#REF!"},{"$error":"#REF!"}]
[null,null,null,null,null,4,1.35,null,{"$error":"#REF!"},{"$error":"#REF!"},{"$error":"#REF!"},{"$error":"#REF!"}]
[null,null,null,null,null,5,1.52,null,{"$error":"#REF!"},{"$error":"#REF!"},{"$error":"#REF!"},{"$error":"#REF!"}]
[{"$f":"\"*  \"&\"Prévoir \"&ROUND(B32,2)&\" Kg de Chikara Duo en plus pour le volume de sécurité\"","v":{"$error":"#REF!"}},null,null,null,null,6,1.64,null,{"$error":"#REF!"},{"$error":"#REF!"},{"$error":"#REF!"},{"$error":"#REF!"}]
[]
[{"$f":"IF(ISERROR(VLOOKUP(B18,I:L,4,FALSE)),\"Volume d'eau : Déconseillé\",\"Volume d'eau : OK\")","v":"Volume d'eau : Déconseillé"}]
[null,"Kilo","Gramme"]
[null,{"$f":"#REF!","v":{"$error":"#REF!"}}]
[null,{"$f":"(B31/B10)*B33","v":{"$error":"#REF!"}}]
["Produit en plus pour volume de sécurité ",{"$f":"1-(B18/(B18+B16))","v":{"$error":"#DIV/0!"}}]